[Event "Argentine Youth-Junior-ch 2025"]
[Site "Mar del Plata"]
[Date "2025.04.18"]
[Round "5.9"]
[White "Alvarez, Mia Morena"]
[Black "Munoz, Kidora"]
[Result "1-0"]
[Annotator "NA RC"]
[ECO "C50"]
[WhiteElo "1819"]
[BlackElo "1656"]
[PlyCount "65"]
[EventDate "2025.04.14"]
[EventType "swiss"]
[EventCountry "ARG"]
[SourceTitle "playchess.com"]
[Source "ChessBase"]
[SourceQuality "1"]
[TimeControl "3600+30"]

1. e4 {[%emt 0:00:04]} e5 {[%emt 0:00:05]} 2. Nf3 {[%emt 0:00:16]} Nc6 {[%emt 0:00:16]} 3. Bc4 {[%emt 0:00:21]} Be7 {[%emt 0:00:21]} 4. d3 {[%emt 0:00:46]} d6 {[%emt 0:00:19]} 5. c3 {[%emt 0:02:04]} Na5 {[%emt 0:00:48]} 6. Bb5+ {[%emt 0:04:04]} c6 {[%emt 0:01:48]} 7. Ba4 {[%emt 0:00:21]} b5 {[%emt 0:02:07]} 8. Bc2 {[%emt 0:00:27]} Nf6 {[%emt 0:01:43]} 9. Nbd2 {[%emt 0:04:42]} Be6 {[%emt 0:02:11]} 10. O-O {[%emt 0:02:42]} O-O {[%emt 0:00:14]} 11. Re1 {[%emt 0:08:00]} Re8 {[%emt 0:03:44]} 12. Nf1 {[%emt 0:01:34]} Nh5 {[%emt 0:00:59]} 13. Nxe5 {[%emt 0:03:39]} dxe5 {[%emt 0:02:05]} 14. Qxh5 {[%emt 0:00:08]} Bf6 {[%emt 0:00:09]} 15. Qd1 {[%emt 0:02:33]} Nb7 {[%emt 0:03:59]} 16. h3 {[%emt 0:02:23]} c5 {[%emt 0:01:51]} 17. Be3 {[%emt 0:02:56]} c4 {[%emt 0:03:06]} 18. d4 {[%emt 0:01:32]} Bc8 {[%emt 0:01:51]} 19. d5 {[%emt 0:01:12]} a6 {[%emt 0:02:19]} 20. a4 {[%emt 0:02:18]} Bd7 {[%emt 0:01:47]} 21. Nh2 {[%emt 0:00:33]} Nd6 {[%emt 0:01:03]} 22. Bd2 {[%emt 0:01:39]} h6 {[%emt 0:01:01]} 23. Ng4 {[%emt 0:01:01]} Bg5 {[%emt 0:00:30]} 24. Bxg5 {[%emt 0:02:16]} Qxg5 {[%emt 0:00:10]} 25. Qf3 {[%emt 0:01:00]} f5 {[%emt 0:01:35]} 26. exf5 {[%emt 0:01:28]} Bxf5 {[%emt 0:00:28]} 27. Bxf5 {[%emt 0:00:31]} Nxf5 {[%emt 0:37:31]} 28. Rxe5 {[%emt 0:24:00]} Rxe5 {[%emt 0:00:30]} 29. Nxe5 Nh4 {[%emt 0:00:30]} 30. Qg3 {[%emt 0:01:00]} Qxg3 {[%emt 0:00:30]} 31. fxg3 {[%emt 0:00:30]} Nf5 {[%emt 0:00:30]} 32. axb5 {[%emt 0:00:30]} a5 {[%emt 0:00:30]} 33. Nxc4 {[%emt 0:00:30]} 1-0

[Event "Argentine Youth-Junior-ch 2025"]
[Site "Mar del Plata"]
[Date "2025.04.18"]
[Round "5.10"]
[White "Villordo, Matias"]
[Black "Fuentes, Agustin"]
[Result "1-0"]
[Annotator "NA RC"]
[ECO "C45"]
[WhiteElo "2055"]
[BlackElo "2006"]
[PlyCount "123"]
[EventDate "2025.04.14"]
[EventType "swiss"]
[EventCountry "ARG"]
[SourceTitle "playchess.com"]
[Source "ChessBase"]
[SourceQuality "1"]
[TimeControl "3600+30"]

1. e4 {[%emt 0:00:06]} e5 {[%emt 0:00:13]} 2. Nf3 {[%emt 0:00:21]} Nc6 {[%emt 0:00:14]} 3. d4 {[%emt 0:00:31]} exd4 {[%emt 0:00:31]} 4. Nxd4 {[%emt 0:00:26]} Bc5 {[%emt 0:00:34]} 5. Nb3 {[%emt 0:00:40]} Bb6 {[%emt 0:00:36]} 6. Qe2 {[%emt 0:00:50]} Nf6 {[%emt 0:00:40]} 7. e5 {[%emt 0:01:01]} Nd5 {[%emt 0:00:46]} 8. c4 {[%emt 0:00:45]} Ndb4 {[%emt 0:00:44]} 9. c5 {[%emt 0:01:21]} Bxc5 {[%emt 0:00:16]} 10. Nxc5 {[%emt 0:00:16]} Nd4 {[%emt 0:00:11]} 11. Qg4 {[%emt 0:00:15]} Ndc2+ {[%emt 0:01:07]} 12. Ke2 {[%emt 0:00:17]} Kf8 {[%emt 0:00:41]} 13. Na3 {[%emt 0:01:00]} d6 {[%emt 0:01:02]} 14. Qc4 {[%emt 0:00:35]} b5 {[%emt 0:00:15]} 15. Qc3 {[%emt 0:03:52]} Nxa3 {[%emt 0:04:57]} 16. bxa3 {[%emt 0:17:56]} Nd5 {[%emt 0:00:35]} 17. Qc2 {[%emt 0:03:33]} dxc5 {[%emt 0:01:32]} 18. Qxc5+ {[%emt 0:00:14]} Kg8 {[%emt 0:02:07]} 19. f3 {[%emt 0:00:35]} c6 {[%emt 0:05:42]} 20. Kf2 {[%emt 0:08:00]} Qb6 {[%emt 0:06:28]} 21. Be3 {[%emt 0:02:09]} Be6 {[%emt 0:06:37]} 22. Bd3 {[%emt 0:03:00]} Nxe3 {[%emt 0:03:34]} 23. Qxe3 {[%emt 0:00:55]} Rd8 {[%emt 0:05:38]} 24. Rhd1 {[%emt 0:02:46]} Bd5 {[%emt 0:03:55]} 25. Be4 {[%emt 0:01:55]} Qxe3+ {[%emt 0:04:31]} 26. Kxe3 {[%emt 0:00:19]} Kf8 {[%emt 0:04:46]} 27. Bxd5 {[%emt 0:00:49]} cxd5 {[%emt 0:00:38]} 28. Rac1 {[%emt 0:00:12]} Ke7 {[%emt 0:00:59]} 29. Rc7+ {[%emt 0:03:59]} Ke6 {[%emt 0:00:05]} 30. Kd4 {[%emt 0:03:19]} Rd7 {[%emt 0:05:15]} 31. Rdc1 {[%emt 0:02:33]} Rhd8 {[%emt 0:00:05]} 32. g4 {[%emt 0:01:57]} a5 {[%emt 0:02:36]} 33. R1c6+ {[%emt 0:01:38]} Ke7 {[%emt 0:00:02]} 34. Rc5 {[%emt 0:02:12]} Rb8 {[%emt 0:01:55]} 35. Rxd7+ {[%emt 0:00:31]} Kxd7 {[%emt 0:00:03]} 36. Kxd5 {[%emt 0:00:09]} a4 {[%emt 0:01:33]} 37. f4 {[%emt 0:01:44]} b4 {[%emt 0:02:16]} 38. axb4 {[%emt 0:00:18]} Rxb4 {[%emt 0:00:09]} 39. Rc4 {[%emt 0:00:10]} Rb5+ {[%emt 0:00:05]} 40. Ke4 {[%emt 0:00:38]} Rb2 {[%emt 0:00:52]} 41. Rxa4 {[%emt 0:00:22]} Rxh2 {[%emt 0:00:12]} 42. Ra7+ {[%emt 0:00:21]} Ke8 {[%emt 0:00:05]} 43. a4 {[%emt 0:00:31]} Ra2 {[%emt 0:02:01]} 44. a5 {[%emt 0:00:23]} Ra4+ {[%emt 0:01:02]} 45. Kf3 {[%emt 0:00:43]} Ra3+ {[%emt 0:01:17]} 46. Ke4 {[%emt 0:05:24]} Ra4+ {[%emt 0:00:01]} 47. Kf5 {[%emt 0:00:33]} h6 {[%emt 0:03:36]} 48. Ra8+ {[%emt 0:00:49]} Ke7 {[%emt 0:00:03]} 49. Ra7+ {[%emt 0:00:04]} Ke8 {[%emt 0:00:02]} 50. e6 {[%emt 0:01:07]} g6+ {[%emt 0:00:17]} 51. Kf6 {[%emt 0:01:16]} fxe6 {[%emt 0:02:00]} 52. a6 {[%emt 0:00:32]} Rxf4+ {[%emt 0:00:38]} 53. Ke5 {[%emt 0:00:33]} Ra4 {[%emt 0:00:22]} 54. Kxe6 {[%emt 0:00:20]} Kf8 {[%emt 0:00:37]} 55. Kf6 {[%emt 0:00:39]} Kg8 {[%emt 0:00:30]} 56. g5 {[%emt 0:00:33]} hxg5 {[%emt 0:00:28]} 57. Kxg6 {[%emt 0:00:14]} Kf8 {[%emt 0:00:17]} 58. Ra8+ {[%emt 0:00:41]} Ke7 {[%emt 0:00:02]} 59. a7 {[%emt 0:00:04]} Ra6+ {[%emt 0:01:08]} 60. Kxg5 {[%emt 0:00:06]} Kf7 {[%emt 0:00:36]} 61. Rh8 {[%emt 0:00:14]} Ra5+ {[%emt 0:00:07]} 62. Kf4 {[%emt 0:00:09]} 1-0